bitfinex/quotes_ETHUSD_20251127
["timestamp","ask_amount","ask_price","bid_price","bid_amount"]
[1764264141375,0.9361,3025.4,3025.3,0.209]
[1764264144306,0.9361,3025.4,3025.2,0.72559411]
[1764264144519,0.9361,3025.4,3025.0,0.001]
[1764264144520,0.99482765,3025.3,3025.0,0.001]
[1764264144678,0.319,3025.1,3025.0,0.001]
[1764264144987,0.62832765,3025.1,3025.0,0.001]
[1764264145184,1.09732765,3025.1,3025.0,0.001]
[1764264146808,4.40300349,3025.1,3025.0,0.001]
[1764264146989,5.17385472,3025.1,3025.0,0.001]
[1764264148518,1.86817888,3025.1,3025.0,0.001]
[1764264148819,0.99732765,3025.1,3025.0,0.001]
[1764264152013,1.03864859,3025.1,3025.0,0.001]
[1764264153008,0.99732765,3025.1,3025.0,0.001]
[1764264153307,4.30300349,3025.1,3025.0,0.001]
[1764264156722,5.07798435,3025.1,3025.0,0.001]
[1764264157010,5.17798435,3025.1,3025.0,0.001]
[1764264158212,5.21930529,3025.1,3025.0,0.001]
[1764264159094,5.17798435,3025.1,3025.0,0.001]
[1764264159814,5.21930529,3025.1,3025.0,0.001]
[1764264161129,0.30932765,3025.1,3025.0,0.4835]
[1764264161334,0.78402765,3025.1,3025.0,0.001]
[1764264162030,4.58250349,3025.1,3025.0,0.001]
[1764264162195,5.51676367,3025.1,3025.0,0.001]
[1764264163427,5.41676367,3025.1,3025.0,0.001]
[1764264163631,5.51676367,3025.1,3025.0,0.001]
[1764264164124,2.21108783,3025.1,3025.0,0.001]
[1764264164310,5.51676367,3025.1,3025.0,0.001]
[1764264166509,5.64921115,3025.1,3025.0,0.001]
[1764264167238,5.64904841,3025.1,3025.0,0.001]
[1764264167805,6.37464252,3025.1,3025.0,0.001]
[1764264168009,6.37464252,3025.1,3024.7,0.001]
[1764264168010,0.1,3024.8,3024.7,0.001]
[1764264168227,5.80586481,3024.8,3024.7,0.001]
[1764264168633,5.93834782,3024.8,3024.7,0.001]
[1764264169740,5.93834782,3024.8,3024.2,0.001]
[1764264169741,0.1,3024.3,3024.2,0.001]
[1764264169927,4.12061518,3024.3,3024.2,0.001]
[1764264170133,5.0254767,3024.3,3024.2,0.001]
[1764264170333,5.15797112,3024.3,3024.2,0.001]
[1764264172125,5.19930299,3024.3,3024.2,0.001]
[1764264179245,5.9248971,3024.3,3024.2,0.001]
[1764264180524,9.56663203,3024.3,3024.2,0.001]
[1764264180827,9.52530016,3024.3,3024.2,0.001]
[1764264183959,5.71368498,3024.3,3024.2,0.001]
[1764264184160,9.53346712,3024.3,3024.2,0.001]
[1764264184361,9.49213525,3024.3,3024.2,0.001]
[1764264184572,9.49213525,3024.3,3024.0,0.001]
[1764264184573,19.51891645,3024.3,3023.5,0.001]
[1764264184874,1.69829811,3024.0,3023.5,0.001]
[1764264185047,5.46866501,3024.0,3023.5,0.001]
[1764264185233,4.357904,3023.8,3023.5,0.001]
[1764264185604,0.1,3022.2,3022.1,0.001]
[1764264185736,0.1184,3022.2,3022.1,0.001]
[1764264186080,3.84743093,3022.2,3022.1,0.001]
[1764264186437,3.98000571,3022.2,3022.1,0.001]
[1764264187164,7.28885356,3022.2,3022.1,0.001]
[1764264187868,8.36735303,3022.2,3022.1,0.001]
[1764264188369,7.28885356,3022.2,3022.1,0.001]
[1764264188587,8.41995167,3022.2,3022.1,0.001]
[1764264189645,4.28541674,3022.2,3022.1,0.001]
[1764264190097,4.74841674,3022.2,3022.1,0.001]
[1764264190275,5.15392074,3022.2,3022.1,0.001]
[1764264190489,6.36345002,3022.2,3022.1,0.001]
[1764264191639,3.45982263,3022.2,3022.1,0.001]
[1764264191844,3.54142263,3022.2,3022.1,0.4815]
[1764264192276,4.00432263,3022.2,3022.1,0.001]
[1764264193480,4.04568322,3022.2,3022.1,0.001]
[1764264193772,3.58278322,3022.2,3022.1,0.4815]
[1764264195375,3.58278322,3022.2,3022.1,1.0879]
[1764264195772,3.45020844,3022.2,3022.1,0.5886]
[1764264195945,3.7568232,3022.2,3022.1,0.5886]
[1764264196685,3.7568232,3022.2,3022.1,0.4815]
[1764264196879,4.2107232,3022.2,3022.1,0.001]
[1764264198993,3.7568232,3022.2,3022.1,0.4939]
[1764264199295,0.44797535,3022.2,3022.1,0.4939]
[1764264199510,3.7568232,3022.2,3022.1,0.9932]
[1764264200205,3.7568232,3022.2,3022.1,0.4939]
[1764264200761,4.2107232,3022.2,3022.1,0.001]
[1764264201281,3.7568232,3022.2,3022.1,0.4939]
[1764264203489,3.7568232,3022.2,3022.1,0.001]
[1764264203857,4.2107232,3022.2,3022.1,0.001]
[1764264204782,6.76056793,3022.2,3022.1,0.001]
[1764264204979,7.21950734,3022.2,3022.1,0.001]
[1764264209065,5.85590334,3022.2,3022.1,0.001]
[1764264209266,5.10395672,3022.2,3022.1,0.001]
[1764264209467,5.14531731,3022.2,3022.1,0.001]
[1764264209862,4.69141731,3022.2,3022.1,0.001]
[1764264210677,5.14531731,3022.2,3022.1,0.001]
[1764264210901,4.48241731,3022.2,3022.1,0.4939]
[1764264211274,3.7568232,3022.2,3022.1,1.1088]
[1764264211506,0.34797535,3022.2,3022.1,1.1088]
[1764264211704,0.30661476,3022.2,3022.1,1.1088]
[1764264212398,0.34797535,3022.2,3022.1,1.1088]
[1764264213402,0.30661476,3022.2,3022.1,1.1088]
[1764264213601,3.61546261,3022.2,3022.1,0.6095]
[1764264213770,0.30661476,3022.2,3022.1,0.6095]
[1764264213971,0.30661476,3022.2,3022.1,1.1088]
[1764264215175,0.30661476,3022.2,3022.1,4.85963856]
[1764264215581,0.30661476,3022.2,3022.1,5.58523267]
[1764264216286,0.04134965,3023.0,3022.2,0.72559411]
[1764264216493,0.04134965,3023.0,3022.9,0.4929]
[1764264216814,3.65835091,3023.0,3022.9,0.4929]
[1764264218177,0.3503787,3023.0,3022.9,0.4929]
[1764264219214,3.65835091,3023.0,3022.9,0.4929]
[1764264219409,3.65835091,3023.0,3022.3,0.4993]
[1764264219410,0.1,3022.8,3022.3,0.4993]
[1764264219711,0.1,3022.6,3022.3,0.67763753]
[1764264220014,0.30902905,3022.5,3022.3,0.67763753]
[1764264220308,0.30902905,3022.4,3022.2,0.209]
[1764264220513,0.1,3022.7,3022.6,0.4554]
[1764264220692,0.44997674,3022.7,3022.6,0.4554]
[1764264221615,0.44995172,3022.7,3022.6,0.4554]
[1764264221812,0.44995172,3022.7,3022.6,0.9276]
[1764264221813,0.34995172,3022.7,3022.6,0.9276]
[1764264222014,0.30859797,3022.7,3022.6,0.9276]
[1764264223212,0.04135238,3022.8,3022.6,0.9276]
[1764264223415,3.40769377,3023.3,3022.7,4.16563523]
[1764264223616,0.30858816,3023.2,3022.8,0.7474045]
[1764264223817,0.002,3023.4,3023.3,0.191]
[1764264223818,0.102,3023.4,3023.3,0.191]
[1764264223982,0.41058948,3023.4,3023.3,0.6464]
[1764264224178,0.102,3023.4,3023.3,0.6464]
[1764264224911,4.25456822,3023.4,3022.8,0.7474045]
[1764264225118,0.1,3023.2,3022.8,0.4722]
[1764264225312,0.1,3023.2,3022.7,3.51724326]
[1764264225313,0.1,3023.2,3022.9,0.4722]
[1764264225501,0.1,3023.2,3023.1,0.4554]
[1764264228121,3.30770314,3023.3,3023.1,1.1065]
[1764264228520,0.04134691,3023.2,3022.8,0.209]
[1764264228726,0.04134691,3023.2,3022.9,0.4722]
[1764264229027,0.04134691,3023.2,3023.1,0.6343]
[1764264229726,0.04134691,3023.2,3023.1,1.1065]
[1764264232499,0.04334418,3023.4,3023.1,1.1065]
[1764264232699,0.002,3023.4,3023.3,0.4554]
[1764264233329,0.002,3023.4,3023.3,0.9276]
[1764264234323,0.002,3023.4,3023.3,1.57803577]
[1764264234518,0.002,3023.4,3023.3,1.1366]
[1764264235421,0.002,3023.4,3023.3,0.4554]
[1764264235620,0.1,3023.3,3022.8,0.209]
[1764264235936,0.1,3023.0,3022.8,0.209]
[1764264236136,0.04134554,3023.3,3022.8,0.6812]
[1764264236320,0.002,3023.4,3023.3,0.4554]
[1764264236846,0.002,3023.4,3023.3,0.9276]
[1764264237045,0.53844418,3023.4,3022.7,1.19779411]
[1764264237216,0.04334418,3023.4,3023.0,0.209]
[1764264237746,0.04334418,3023.4,3023.3,0.4554]
[1764264239329,3.35087874,3023.4,3023.3,0.4554]
[1764264240743,0.1,3023.3,3023.0,0.209]
[1764264240918,0.04134691,3023.2,3022.9,0.209]
[1764264241320,0.04134691,3023.2,3022.9,0.6812]
[1764264241736,3.34912547,3023.2,3022.9,0.6812]
[1764264241946,3.34912547,3023.2,3023.1,0.4554]
[1764264241947,0.04134691,3023.2,3023.1,0.4554]
[1764264242117,0.1,3023.3,3023.1,0.4554]
[1764264242317,0.1,3023.3,3023.2,0.4554]
[1764264242940,0.002,3023.4,3023.2,0.9276]
[1764264243138,0.002,3023.4,3023.3,0.4554]
[1764264243345,0.002,3023.4,3023.3,4.23524396]
[1764264243528,0.002,3023.4,3023.3,5.0074334]
[1764264243727,0.002,3023.4,3023.3,10.07241791]
[1764264244556,0.002,3023.4,3023.3,8.88749396]
[1764264248445,0.002,3023.4,3023.3,10.07407663]
[1764264250235,0.002,3023.4,3023.3,6.91961018]
[1764264252352,0.002,3023.4,3023.3,5.73302751]
[1764264252857,0.002,3023.4,3023.3,6.9198065]
[1764264253768,0.002,3023.4,3023.3,2.16218355]
[1764264254068,0.002,3023.4,3023.3,1.38999411]
[1764264254236,0.002,3023.4,3023.3,4.69763807]
[1764264254638,0.002,3023.4,3023.3,5.16093807]
[1764264254837,0.002,3023.4,3023.3,4.69763807]
[1764264255258,0.4719,3023.4,3023.3,0.72559411]
[1764264255443,0.002,3023.4,3023.3,1.39549411]
[1764264255646,0.002,3023.4,3023.3,0.93459411]
[1764264255852,0.4719,3023.4,3023.3,0.209]
[1764264256239,0.002,3023.4,3023.3,0.6699]
[1764264257049,0.002,3023.4,3023.3,4.44084396]
[1764264258057,0.002,3023.4,3023.3,9.11365341]
[1764264258226,0.002,3023.4,3023.3,10.3004324]
[1764264258418,0.002,3023.4,3023.3,9.21365341]
[1764264258622,0.002,3023.4,3023.3,10.99103934]
[1764264259260,0.002,3023.4,3023.3,11.29654334]
[1764264259851,0.002,3023.4,3023.3,11.39654334]
[1764264263060,0.002,3023.4,3023.3,11.40007621]
[1764264263355,0.002,3023.4,3023.3,11.40107621]
[1764264266166,0.002,3023.4,3023.3,11.30107621]
[1764264266462,0.002,3023.4,3023.3,9.52015741]
[1764264267161,0.4719,3023.4,3023.3,0.001]
[1764264267330,0.9491,3023.4,3023.3,0.21]
[1764264268573,0.4719,3023.4,3023.3,3.51764396]
[1764264269736,0.9491,3023.4,3023.3,0.21]
[1764264270237,0.9491,3023.4,3023.3,0.001]
[1764264270238,4.25663456,3023.4,3023.3,0.001]
[1764264270455,5.01303735,3023.4,3023.3,0.001]
[1764264270973,5.32147461,3023.4,3023.3,0.001]
[1764264272151,2.01394005,3023.4,3023.3,0.001]
[1764264272353,1.25753726,3023.4,3023.3,0.001]
[1764264272770,4.66507182,3023.4,3023.3,0.001]
[1764264278573,4.706416,3023.4,3023.3,0.001]
[1764264282084,1.24683726,3023.4,3023.3,0.001]
[1764264282276,0.78033726,3023.4,3023.3,0.001]
[1764264282697,4.55437182,3023.4,3023.3,0.001]
[1764264283488,5.44467535,3023.4,3023.3,0.001]
[1764264285795,5.48601953,3023.4,3023.3,0.001]
[1764264288064,4.595716,3023.4,3023.3,0.001]
[1764264288264,4.65437182,3023.4,3023.3,0.001]
[1764264288490,4.695716,3023.4,3023.3,0.001]
[1764264290065,4.595716,3023.4,3023.3,0.001]
[1764264290383,4.695716,3023.4,3023.3,0.001]
[1764264290584,5.49603112,3023.4,3023.3,0.001]
[1764264295179,4.129216,3023.4,3023.3,0.001]
[1764264296295,4.595716,3023.4,3023.3,0.001]
[1764264296981,4.695716,3023.4,3023.3,0.001]
[1764264303400,0.002,3023.8,3023.3,1.1482]
[1764264303598,0.002,3023.8,3023.7,4.7916448]
[1764264303801,0.002,3024.0,3023.8,1.23109811]
[1764264303980,0.002,3024.0,3023.9,0.5245]
[1764264304174,0.002,3024.0,3023.9,1.52996884]
[1764264304409,0.002,3024.0,3023.9,3.31169274]
[1764264304565,0.002,3024.0,3023.9,7.34427123]
[1764264304768,0.002,3024.0,3023.9,7.11171757]
[1764264305502,0.002,3024.0,3023.9,6.53074873]
[1764264306303,0.002,3024.0,3023.9,8.31044452]
[1764264306507,0.002,3024.0,3023.9,6.53074873]
[1764264306869,0.002,3024.0,3023.9,8.71594852]
[1764264307383,0.002,3024.0,3023.9,6.93625273]
[1764264307705,0.002,3024.0,3023.9,5.79074873]
[1764264308002,0.4975,3024.0,3023.9,5.79074873]
[1764264308501,0.4975,3024.0,3023.9,4.24158177]
[1764264308703,0.4975,3024.0,3023.3,8.32432843]
[1764264308704,0.964,3024.0,3023.3,1.18563292]
[1764264309021,0.33480043,3023.9,3023.4,3.51650929]
[1764264309236,0.33480043,3023.9,3023.5,0.03307425]
[1764264309237,0.80130043,3023.9,3023.5,0.03307425]
[1764264309519,0.23480043,3023.9,3023.5,0.03307425]
[1764264309817,0.23480043,3023.9,3023.6,0.209]
[1764264310017,0.04330043,3024.0,3023.8,0.4245]
[1764264310240,0.002,3024.0,3023.9,0.4245]
[1764264311606,0.002,3024.0,3023.9,4.15598766]
[1764264311910,0.002,3024.0,3023.9,4.90560301]
[1764264313731,0.002,3024.0,3023.9,0.209]
[1764264314137,0.002,3024.0,3023.9,0.6335]
[1764264314523,0.002,3024.0,3023.6,0.75866726]
[1764264314834,0.002,3024.0,3023.7,0.209]
[1764264315042,0.002,3024.0,3023.8,0.03307097]
[1764264315895,0.002,3024.0,3023.7,0.03307206]
[1764264315896,0.474,3023.9,3023.7,0.03307206]
[1764264316097,0.002,3024.0,3023.8,0.209]
[1764264316636,0.002,3024.0,3023.9,0.209]
[1764264317451,0.002,3024.0,3023.6,3.30729608]
[1764264317452,0.476,3024.0,3023.4,0.4255]
[1764264317611,0.4968,3023.8,3023.4,0.001]
[1764264317799,0.4968,3023.8,3023.5,0.209]
[1764264317998,0.9898,3023.8,3023.5,0.209]
[1764264318306,0.4968,3023.8,3023.5,0.209]
[1764264318623,0.3968,3023.8,3023.5,0.56085092]
[1764264318927,0.8898,3023.8,3023.6,0.209]
[1764264319303,0.4687,3023.7,3023.6,0.209]
[1764264320511,0.9617,3023.7,3023.6,0.209]
[1764264320723,0.4687,3023.7,3023.6,0.209]
[1764264325736,3.30889437,3024.0,3023.6,0.209]
[1764264325737,0.002,3024.0,3023.8,0.405504]
[1764264325935,0.002,3024.0,3023.9,6.68874561]
[1764264326237,0.002,3024.0,3023.9,7.36092738]
[1764264326437,0.002,3024.0,3023.9,7.26092738]
[1764264326640,0.002,3024.0,3023.9,7.56992738]
[1764264327041,0.002,3024.0,3023.9,5.79202257]
[1764264327443,0.002,3024.0,3023.9,11.21147807]
[1764264327611,0.002,3024.0,3023.9,6.19752657]
[1764264327837,0.002,3024.0,3023.9,9.50451423]
[1764264328731,0.002,3024.0,3023.9,11.28241904]
[1764264329262,0.002,3024.0,3023.9,14.51846573]
[1764264329769,0.002,3024.0,3023.9,11.28241904]
[1764264330139,0.002,3024.0,3023.9,14.51846573]
[1764264330663,0.002,3024.4,3023.9,12.74056092]
[1764264330837,0.002,3024.4,3024.3,0.5449]
[1764264331029,0.002,3024.4,3024.3,3.98994669]
[1764264331231,0.002,3024.4,3024.3,4.41454669]
[1764264332443,0.002,3024.4,3024.3,7.72109696]
[1764264332642,0.002,3024.4,3024.3,8.85219507]
[1764264332848,0.002,3024.4,3024.3,10.41837706]
[1764264333167,0.002,3024.4,3024.3,12.19575273]
[1764264333363,0.002,3024.4,3024.3,10.41837706]
[1764264335458,0.002,3024.4,3024.3,12.19504219]
[1764264337273,0.002,3024.4,3024.3,9.68477706]
[1764264337476,0.002,3024.4,3024.3,10.41837706]
[1764264343278,0.002,3024.4,3024.3,9.89377706]
[1764264343895,0.002,3024.4,3024.3,10.41837706]
[1764264345294,0.002,3024.4,3024.3,10.31837706]
[1764264345475,0.002,3024.4,3024.3,10.41837706]
[1764264350408,0.002,3024.4,3024.3,12.19504219]
[1764264352392,0.002,3024.4,3024.3,10.41837706]
[1764264352711,0.002,3024.4,3024.3,11.67230684]
[1764264353094,0.002,3024.4,3024.3,11.34300684]
[1764264353293,0.002,3024.4,3024.3,11.55200684]
[1764264353493,0.002,3024.4,3024.3,9.77347706]
[1764264354403,0.002,3024.4,3024.3,9.56447706]
[1764264354602,0.4821,3024.4,3024.3,6.11283037]
[1764264354805,0.002,3024.4,3024.3,6.11283037]
[1764264355309,0.002,3024.4,3024.3,6.67049587]
[1764264355612,0.002,3024.4,3024.3,6.63743037]
[1764264355915,0.002,3024.4,3024.3,7.06203037]
[1764264356511,0.002,3024.4,3024.3,6.63743037]
[1764264357009,0.4821,3024.4,3024.3,9.13987706]
[1764264357208,0.002,3024.4,3024.3,9.34887706]
[1764264357386,0.002,3024.4,3024.3,9.77347706]
[1764264357787,0.002,3024.4,3024.3,10.29807706]
[1764264360132,0.002,3024.4,3024.3,9.87347706]
[1764264360631,0.002,3024.4,3024.3,9.44887706]
[1764264361130,0.002,3024.4,3024.3,9.87347706]
[1764264361654,0.002,3024.7,3024.6,0.505504]
[1764264361835,0.002,3024.7,3024.6,4.92480702]
[1764264362020,0.002,3024.7,3024.6,6.19496951]
[1764264362711,0.002,3024.7,3024.6,5.73730729]
[1764264362912,0.4821,3024.7,3024.6,8.76099182]
[1764264363119,0.4821,3024.7,3024.6,8.7279296]
[1764264363328,0.002,3024.7,3024.6,9.1525296]
[1764264363924,0.002,3024.7,3024.6,8.7279296]
[1764264364532,0.4821,3024.7,3024.6,8.64182501]
[1764264364830,0.9462,3024.7,3024.6,5.3008771]
[1764264365039,0.9462,3024.7,3024.6,6.05953343]
[1764264365239,0.9462,3024.7,3024.6,4.27387864]
[1764264365470,0.9462,3024.7,3024.6,6.05952994]
[1764264367243,0.9462,3024.7,3024.3,1.7856513]
[1764264367464,0.87379195,3024.6,3024.4,0.209]
[1764264367774,0.30969195,3024.5,3024.4,0.209]
[1764264367954,1.25389195,3024.5,3024.4,0.93459411]
[1764264368149,1.25389195,3024.5,3024.4,0.209]
[1764264368150,0.9442,3024.5,3024.4,0.209]
[1764264368674,0.9442,3024.5,3024.4,0.93459411]
[1764264371190,0.9442,3024.5,3024.4,0.209]
[1764264371392,0.9442,3024.5,3024.0,0.001]
[1764264371572,0.4911,3024.1,3024.0,0.001]
[1764264371779,0.4911,3024.1,3024.0,4.24247241]
[1764264371989,0.9738,3024.1,3024.0,4.24247241]
[1764264374505,3.30813066,3024.7,3024.1,0.72559411]
[1764264374506,0.002,3024.7,3024.1,0.72559411]
[1764264374803,0.4827,3024.6,3024.2,0.03306659]
[1764264375108,0.4827,3024.6,3024.1,0.72559411]
[1764264375109,0.4911,3024.2,3024.1,0.72559411]
[1764264375285,0.4911,3024.2,3024.1,0.93459411]
[1764264375496,0.9738,3024.2,3024.1,1.73458885]
[1764264375802,0.9738,3024.2,3024.1,1.97665653]
[1764264376802,0.4827,3024.5,3024.1,11.89696338]
[1764264376975,0.002,3024.7,3024.1,11.89696338]
[1764264376976,0.4847,3024.7,3024.3,3.1499421]
[1764264377297,0.4847,3024.7,3024.4,0.0330644]
[1764264377504,0.4847,3024.7,3024.5,0.209]
[1764264378206,0.4911,3024.6,3024.5,0.209]
[1764264378700,0.9738,3024.6,3024.5,0.209]
[1764264378906,0.9738,3024.6,3024.5,3.51533162]
[1764264379202,0.9738,3024.6,3024.5,3.54839493]
[1764264380107,0.9738,3024.6,3024.5,3.51533162]
[1764264380571,0.4911,3024.6,3024.5,3.51533162]
[1764264380771,0.4911,3024.6,3024.5,4.19750835]
[1764264382101,0.002,3024.7,3024.6,0.72559411]
[1764264382325,0.002,3024.7,3024.6,1.15019411]
[1764264382677,0.4931,3024.7,3024.6,0.72559411]
[1764264383204,0.002,3024.7,3024.6,4.03181642]
[1764264383386,0.002,3024.7,3024.6,4.8548489]
[1764264384803,0.4931,3024.7,3024.6,4.8548489]
[1764264385005,0.9758,3024.7,3024.6,4.8548489]
[1764264385519,0.002,3024.7,3024.6,5.2794489]
[1764264385722,0.9758,3024.7,3024.6,4.8548489]
[1764264386830,0.9758,3024.7,3024.6,4.88791112]
[1764264387807,0.9758,3024.7,3024.6,4.8548489]
[1764264389122,0.9758,3024.7,3024.5,3.30631629]
[1764264389429,0.8771,3024.6,3024.5,3.30631629]
[1764264389725,0.8771,3024.6,3024.5,3.51531629]
[1764264390294,0.8771,3024.6,3024.5,3.5483796]
[1764264391326,0.8771,3024.6,3024.5,3.3393796]
[1764264391501,0.8771,3024.6,3024.5,0.209]
[1764264392648,0.8771,3024.6,3024.4,0.001]
[1764264392803,3.40820101,3024.7,3024.5,0.209]
[1764264393131,0.65031006,3024.6,3024.4,0.001]
[1764264393432,0.4911,3024.5,3024.4,0.001]
[1764264393634,0.9738,3024.5,3024.4,0.21]
[1764264394431,1.28342192,3024.5,3024.4,0.21]
[1764264394633,0.002,3024.7,3024.4,0.6346]
[1764264394927,0.002,3024.7,3024.5,0.03306331]
[1764264395102,0.002,3024.7,3024.6,0.4246]
[1764264395464,0.002,3024.7,3024.6,0.45766222]
[1764264396696,0.4931,3024.7,3024.6,0.03306222]
[1764264397630,0.4931,3024.7,3024.6,3.33928453]
[1764264399327,0.4931,3024.7,3024.6,3.51522231]
[1764264403325,0.4931,3024.7,3024.6,4.37554693]
[1764264404643,0.4931,3024.7,3024.6,3.30622231]
[1764264404843,0.4931,3024.7,3024.6,0.209]
[1764264404844,0.9927,3024.7,3024.6,0.209]
[1764264407540,0.002,3024.7,3024.6,3.93982231]
[1764264407842,0.9804,3024.7,3024.6,3.51522231]
[1764264408027,0.9804,3024.7,3024.6,0.209]
[1764264408850,0.9804,3024.7,3024.6,3.51522231]
[1764264411016,0.4808,3024.7,3024.6,3.54828453]
[1764264411347,0.002,3024.7,3024.6,4.83320887]
[1764264411947,0.002,3024.7,3024.6,4.40860887]
[1764264412149,0.4808,3024.7,3024.6,4.37554665]
[1764264413219,0.4808,3024.7,3024.6,4.40860887]
[1764264415225,0.4808,3024.7,3024.6,4.37554665]
[1764264415751,0.4808,3024.7,3024.6,4.16654665]
[1764264415949,0.4808,3024.7,3024.6,4.37554665]
[1764264416331,0.9804,3024.7,3024.6,4.37554665]
[1764264417153,0.002,3024.7,3024.6,4.83320887]
[1764264417351,0.002,3024.7,3024.6,4.40860887]
[1764264417550,0.4808,3024.7,3024.6,4.37554665]
[1764264418762,0.9804,3024.7,3024.6,3.51522231]
[1764264419752,1.2903594,3024.7,3024.4,0.72659411]
[1764264419955,0.3924,3024.5,3024.4,0.001]
[1764264420154,0.3924,3024.5,3024.4,0.21]
[1764264420155,0.70237544,3024.5,3024.4,0.21]
[1764264420458,1.20197815,3024.5,3024.4,0.21]
[1764264421783,1.75298728,3024.5,3024.4,0.001]
[1764264422066,1.75298728,3024.5,3024.4,0.21]
[1764264422067,5.0593189,3024.5,3024.4,0.21]
[1764264422769,1.75298728,3024.5,3024.4,0.21]
[1764264424060,0.30997815,3024.5,3024.4,3.51644094]
[1764264424259,0.78877815,3024.5,3024.4,3.54950534]
[1764264424456,1.28837815,3024.5,3024.4,0.21]
[1764264425851,1.28816455,3024.5,3024.4,0.21]
[1764264427568,0.78856455,3024.5,3024.4,3.51644094]
[1764264427770,0.78856455,3024.5,3024.4,0.21]
[1764264428075,1.28816455,3024.5,3024.4,0.21]
[1764264429470,1.76192791,3024.5,3024.4,0.21]
[1764264431069,0.30976455,3024.5,3024.4,0.21]
[1764264431442,0.79766455,3024.5,3024.4,0.21]
[1764264432270,1.25646455,3024.5,3024.4,0.21]
[1764264432840,1.25646455,3024.5,3024.4,0.001]
[1764264433035,1.29776498,3024.5,3024.4,0.21]
[1764264433275,2.19898572,3024.5,3024.4,0.21]
[1764264433973,5.50516343,3024.5,3024.4,0.21]
[1764264434177,2.19883181,3024.5,3024.4,0.21]
[1764264434565,5.50516343,3024.5,3024.4,0.001]
[1764264434738,2.19883181,3024.5,3024.4,0.21]
[1764264436986,5.50516343,3024.5,3024.4,0.21]
[1764264437293,2.19883181,3024.5,3024.4,0.21]
[1764264438684,5.50516343,3024.5,3024.4,0.001]
[1764264438875,5.50516343,3024.5,3024.4,0.21]
[1764264439693,0.31161064,3024.5,3024.4,7.17385162]
[1764264439850,0.002,3024.5,3024.4,7.17385162]
[1764264441190,0.002,3024.5,3024.4,7.59845162]
[1764264441698,0.002,3024.5,3024.4,8.32404573]
[1764264443913,0.002,3024.7,3024.5,1.13109811]
[1764264444210,0.002,3024.7,3024.6,1.65569811]
[1764264444415,0.002,3024.7,3024.6,3.86019107]
[1764264444630,0.002,3024.7,3024.6,2.08029811]
[1764264444820,0.002,3024.7,3024.6,1.98029811]
[1764264444978,0.002,3024.7,3024.6,3.40583363]
[1764264445312,0.002,3024.7,3024.6,8.62771903]
[1764264445608,0.002,3024.7,3024.6,11.93394134]
[1764264445981,0.002,3024.7,3024.6,11.72494134]
[1764264446181,0.002,3024.7,3024.6,11.93394134]
[1764264449283,0.002,3024.7,3024.6,10.15386662]
[1764264449487,0.002,3024.7,3024.6,10.28625185]
[1764264449683,0.002,3024.7,3024.6,9.97725185]
[1764264449887,0.002,3024.7,3024.6,7.05344117]
[1764264450082,0.002,3024.7,3024.6,10.28625185]
[1764264450408,0.002,3024.7,3024.6,6.31984117]
[1764264450596,0.002,3024.7,3024.6,10.28625185]
[1764264451715,0.002,3024.7,3024.6,10.18625185]
[1764264451879,0.002,3024.7,3024.6,10.28625185]
[1764264453586,0.002,3024.7,3024.6,9.76165185]
[1764264454120,0.002,3024.7,3024.6,10.18625185]
[1764264454413,0.002,3024.7,3024.6,5.91433717]
[1764264454614,0.002,3024.7,3024.6,9.38921007]
[1764264454820,0.002,3024.7,3024.6,9.35614785]
[1764264455003,0.002,3024.7,3024.6,8.72254785]
[1764264455317,0.4879,3024.7,3024.6,8.79916262]
[1764264455545,0.4879,3024.7,3024.6,5.56635194]
[1764264455729,0.002,3024.7,3024.6,5.56635194]
[1764264456806,0.002,3024.7,3024.6,6.02401416]
[1764264457522,0.002,3024.7,3024.6,6.54861416]
[1764264457826,0.002,3024.7,3024.6,6.68101867]
[1764264458119,0.002,3024.7,3024.6,6.64795645]
[1764264458906,0.002,3024.7,3024.6,6.54795645]
[1764264459111,0.002,3024.7,3024.6,6.68101867]
[1764264459310,0.002,3024.7,3024.6,6.64795645]
[1764264460530,0.002,3024.7,3024.6,9.88076713]
[1764264461227,0.002,3024.7,3024.6,9.45616713]
[1764264461796,0.002,3024.7,3024.6,9.78076713]
[1764264461997,0.002,3024.7,3024.6,10.18627113]
[1764264462297,0.002,3024.7,3024.6,8.93156713]
[1764264463496,0.002,3024.7,3024.6,9.35616713]
[1764264463902,0.9496,3024.7,3024.6,5.56635194]
[1764264465511,0.9496,3024.7,3024.6,5.59941416]
[1764264465701,0.9496,3024.7,3024.6,8.83222484]
[1764264465901,0.4915,3024.7,3024.6,8.79916262]
[1764264466831,0.9496,3024.7,3024.6,4.03181642]
[1764264466998,0.9496,3024.7,3024.6,4.24081642]
[1764264467906,0.002,3024.7,3024.6,4.24081642]
[1764264468231,0.002,3024.7,3024.6,7.93128932]
[1764264468436,0.002,3024.7,3024.6,9.20019655]
[1764264469730,0.9496,3024.7,3024.6,8.77559655]
[1764264470568,0.4915,3024.7,3024.6,8.77559655]
[1764264470734,0.002,3024.7,3024.6,9.20019655]
[1764264471037,0.002,3024.7,3024.6,9.30019655]
[1764264471212,0.002,3024.7,3024.6,11.08027127]
[1764264472135,0.002,3024.7,3024.6,11.11267622]
[1764264472299,0.002,3024.7,3024.6,11.63727622]
[1764264472636,0.002,3024.7,3024.6,9.7572015]
[1764264472834,0.002,3024.7,3024.6,9.8572015]
[1764264473035,0.002,3024.7,3024.6,9.8381055]